[Event "*** Titled Tuesday Blitz"]
[Site "Chess.com"]
[Date "2020.05.12"]
[Round "3"]
[White "DDTerziev04"]
[Black "Moon_stone123"]
[Result "0-1"]
[WhiteElo "2282"]
[BlackElo "2516"]
[TimeControl "180+1"]
[EndTime "10:27:54 PDT"]
[Termination "Moon_stone123 won on time"]

1. e4 {[%clk 0:03:00.9]} 1... c6 {[%clk 0:02:58.9]} 2. d4 {[%clk 0:02:59.4]}
2... d5 {[%clk 0:02:59.1]} 3. exd5 {[%clk 0:02:59.9]} 3... cxd5 {[%clk
0:02:59.1]} 4. Bd3 {[%clk 0:02:59.9]} 4... Nc6 {[%clk 0:02:59.2]} 5. c3 {[%clk
0:02:59.7]} 5... Nf6 {[%clk 0:02:57.3]} 6. Bf4 {[%clk 0:02:55.9]} 6... g6 {[%clk
0:02:57.1]} 7. Nd2 {[%clk 0:02:54]} 7... Bg7 {[%clk 0:02:57.1]} 8. Ngf3 {[%clk
0:02:53.7]} 8... O-O {[%clk 0:02:57]} 9. h3 {[%clk 0:02:53]} 9... a6 {[%clk
0:02:47.8]} 10. a4 {[%clk 0:02:49.6]} 10... Bf5 {[%clk 0:02:38.3]} 11. Bxf5
{[%clk 0:02:47.6]} 11... gxf5 {[%clk 0:02:39.2]} 12. g4 {[%clk 0:02:35.5]} 12...
Qd7 {[%clk 0:02:33.4]} 13. Rg1 {[%clk 0:02:26.6]} 13... Kh8 {[%clk 0:02:27]} 14.
Ne5 {[%clk 0:02:16.6]} 14... Qe6 {[%clk 0:02:21.7]} 15. Nf3 {[%clk 0:01:56.5]}
15... Ne4 {[%clk 0:02:16.9]} 16. Qe2 {[%clk 0:01:44.3]} 16... Rac8 {[%clk
0:02:07]} 17. Kf1 {[%clk 0:01:30.5]} 17... fxg4 {[%clk 0:01:57.7]} 18. Rxg4
{[%clk 0:01:24.4]} 18... Rg8 {[%clk 0:01:52.8]} 19. Rh4 {[%clk 0:01:05.8]} 19...
Nxe5 {[%clk 0:01:37.1]} 20. Nxe5 {[%clk 0:01:03.6]} 20... Bxe5 {[%clk
0:01:33.4]} 21. dxe5 {[%clk 0:00:44.3]} 21... Qf5 {[%clk 0:01:24.8]} 22. Qe3
{[%clk 0:00:38.8]} 22... e6 {[%clk 0:01:20.5]} 23. Ke2 {[%clk 0:00:27]} 23...
Rg2 {[%clk 0:01:14.6]} 24. Rf1 {[%clk 0:00:23]} 24... Rcg8 {[%clk 0:01:15]} 25.
Qf3 {[%clk 0:00:21.9]} 25... Nc5 {[%clk 0:01:03.3]} 26. Kd2 {[%clk 0:00:16.6]}
26... Nd7 {[%clk 0:00:56.4]} 27. Kc1 {[%clk 0:00:16]} 27... Rg1 {[%clk
0:00:52.4]} 28. Qd1 {[%clk 0:00:14.3]} 28... Rxf1 {[%clk 0:00:43.2]} 29. Qxf1
{[%clk 0:00:15.2]} 29... Nxe5 {[%clk 0:00:40.4]} 30. Qe2 {[%clk 0:00:14.8]}
30... Nd3+ {[%clk 0:00:36.4]} 31. Kd2 {[%clk 0:00:09.3]} 31... Nxf4 {[%clk
0:00:36.6]} 32. Qf3 {[%clk 0:00:05.6]} 32... e5 {[%clk 0:00:37.1]} 0-1

[Event "*** Titled Tuesday Blitz"]
[Site "Chess.com"]
[Date "2020.05.12"]
[Round "3"]
[White "levallem"]
[Black "Keks2017"]
[Result "1/2-1/2"]
[WhiteElo "2129"]
[BlackElo "2465"]
[TimeControl "180+1"]
[EndTime "10:27:55 PDT"]
[Termination "Game drawn by repetition"]

1. d4 {[%clk 0:02:48.9]} 1... d6 {[%clk 0:02:59.5]} 2. c4 {[%clk 0:02:48]} 2...
e5 {[%clk 0:02:58.8]} 3. dxe5 {[%clk 0:02:48.9]} 3... dxe5 {[%clk 0:02:58.3]} 4.
Qxd8+ {[%clk 0:02:49.5]} 4... Kxd8 {[%clk 0:02:58.3]} 5. b3 {[%clk 0:02:44.8]}
5... f6 {[%clk 0:02:57.7]} 6. Bb2 {[%clk 0:02:41.4]} 6... Nd7 {[%clk 0:02:54.6]}
7. Nc3 {[%clk 0:02:41.3]} 7... c6 {[%clk 0:02:54.6]} 8. O-O-O {[%clk 0:02:41.8]}
8... Kc7 {[%clk 0:02:54.7]} 9. Nf3 {[%clk 0:02:36.7]} 9... Nh6 {[%clk
0:02:53.9]} 10. h3 {[%clk 0:02:29.3]} 10... Nf7 {[%clk 0:02:53.6]} 11. e3 {[%clk
0:02:29.3]} 11... Be7 {[%clk 0:02:52.1]} 12. Be2 {[%clk 0:02:25.9]} 12... Nc5
{[%clk 0:02:51.5]} 13. Rd2 {[%clk 0:02:23.5]} 13... a5 {[%clk 0:02:50.5]} 14. g4
{[%clk 0:02:07.9]} 14... Be6 {[%clk 0:02:49.5]} 15. Kc2 {[%clk 0:01:57.5]} 15...
Rad8 {[%clk 0:02:45.1]} 16. Rhd1 {[%clk 0:01:57.2]} 16... Rxd2+ {[%clk
0:02:44.2]} 17. Nxd2 {[%clk 0:01:56]} 17... h5 {[%clk 0:02:42]} 18. Nde4 {[%clk
0:01:47.9]} 18... Nxe4 {[%clk 0:02:41.3]} 19. Nxe4 {[%clk 0:01:48.8]} 19... hxg4
{[%clk 0:02:41.2]} 20. hxg4 {[%clk 0:01:47.3]} 20... Rh2 {[%clk 0:02:40.6]} 21.
Rd2 {[%clk 0:01:43.4]} 21... Nd6 {[%clk 0:02:34.9]} 22. Nxd6 {[%clk 0:01:41.3]}
22... Bxd6 {[%clk 0:02:34.8]} 23. f3 {[%clk 0:01:30.8]} 23... Bc5 {[%clk
0:02:32.6]} 24. Kd3 {[%clk 0:01:22.6]} 24... Bf7 {[%clk 0:02:29.1]} 25. Bd1
{[%clk 0:01:12.7]} 25... Bg6+ {[%clk 0:02:25.1]} 26. e4 {[%clk 0:01:12.8]} 26...
Rh1 {[%clk 0:02:23]} 27. Bc3 {[%clk 0:01:09.6]} 27... b6 {[%clk 0:02:22]} 28.
Kc2 {[%clk 0:01:01.5]} 28... Be3 {[%clk 0:02:14.1]} 29. Re2 {[%clk 0:00:58.9]}
29... Bf4 {[%clk 0:02:05.5]} 30. Rg2 {[%clk 0:00:58.5]} 30... Bf7 {[%clk
0:01:55.8]} 31. Bd2 {[%clk 0:00:58.3]} 31... Bxd2 {[%clk 0:01:55.2]} 32. Kxd2
{[%clk 0:00:57.9]} 32... g5 {[%clk 0:01:54.9]} 33. Kc2 {[%clk 0:00:56.2]} 33...
Be6 {[%clk 0:01:48.9]} 34. Be2 {[%clk 0:00:54.5]} 34... Kd6 {[%clk 0:01:47.8]}
35. Rf2 {[%clk 0:00:52]} 35... Kc5 {[%clk 0:01:47.3]} 36. Bf1 {[%clk 0:00:34.3]}
36... Kd4 {[%clk 0:01:34.7]} 37. Rd2+ {[%clk 0:00:27.3]} 37... Ke3 {[%clk
0:01:22]} 38. Be2 {[%clk 0:00:19.6]} 38... Rh2 {[%clk 0:01:18]} 39. Kd1 {[%clk
0:00:18.8]} 39... b5 {[%clk 0:00:59.4]} 40. cxb5 {[%clk 0:00:17.4]} 40... cxb5
{[%clk 0:00:58.8]} 41. Rd3+ {[%clk 0:00:17.3]} 41... Kf4 {[%clk 0:00:51.3]} 42.
Rd6 {[%clk 0:00:17.8]} 42... Ke3 {[%clk 0:00:50.2]} 43. Rd3+ {[%clk 0:00:17.3]}
43... Kf4 {[%clk 0:00:49.9]} 44. Rd6 {[%clk 0:00:17.8]} 44... Ke3 {[%clk
0:00:49.9]} 45. Rd3+ {[%clk 0:00:17.8]} 1/2-1/2

[Event "*** Titled Tuesday Blitz"]
[Site "Chess.com"]
[Date "2020.05.12"]
[Round "3"]
[White "PowerThinking2650"]
[Black "KrolPawel92OnTwitch"]
[Result "0-1"]
[WhiteElo "2284"]
[BlackElo "2588"]
[TimeControl "180+1"]
[EndTime "10:27:56 PDT"]
[Termination "KrolPawel92OnTwitch won on time"]

1. e4 {[%clk 0:03:00]} 1... c5 {[%clk 0:02:59.1]} 2. Nf3 {[%clk 0:02:59.5]} 2...
Nc6 {[%clk 0:02:55.1]} 3. d4 {[%clk 0:02:59.2]} 3... cxd4 {[%clk 0:02:56]} 4.
Nxd4 {[%clk 0:02:59.8]} 4... e5 {[%clk 0:02:56.6]} 5. Nb5 {[%clk 0:02:59.6]}
5... d6 {[%clk 0:02:56.5]} 6. N1c3 {[%clk 0:02:54.1]} 6... a6 {[%clk 0:02:56.2]}
7. Na3 {[%clk 0:02:54.3]} 7... Be7 {[%clk 0:02:56.9]} 8. Nc4 {[%clk 0:02:52.8]}
8... Be6 {[%clk 0:02:48.7]} 9. Be3 {[%clk 0:02:46.6]} 9... b5 {[%clk 0:02:32.5]}
10. Nb6 {[%clk 0:02:41.1]} 10... Rb8 {[%clk 0:02:32.7]} 11. Nbd5 {[%clk
0:02:21.8]} 11... f5 {[%clk 0:02:32.3]} 12. exf5 {[%clk 0:02:15.5]} 12... Bxf5
{[%clk 0:02:32.1]} 13. Bd3 {[%clk 0:02:15.2]} 13... Be6 {[%clk 0:02:29.5]} 14.
Qh5+ {[%clk 0:02:07]} 14... Kd7 {[%clk 0:02:23.3]} 15. Bf5 {[%clk 0:01:35.9]}
15... Nf6 {[%clk 0:02:17.7]} 16. Qh3 {[%clk 0:01:29.6]} 16... Qg8 {[%clk
0:02:17.2]} 17. Bxe6+ {[%clk 0:01:15.9]} 17... Qxe6 {[%clk 0:02:16.6]} 18. Nb6+
{[%clk 0:01:15]} 18... Rxb6 {[%clk 0:02:17.3]} 19. Qxe6+ {[%clk 0:01:13.8]}
19... Kxe6 {[%clk 0:02:18.2]} 20. Bxb6 {[%clk 0:01:13.8]} 20... Rc8 {[%clk
0:02:09.2]} 21. O-O-O {[%clk 0:00:55.2]} 21... b4 {[%clk 0:02:03.9]} 22. Ne2
{[%clk 0:00:48.7]} 22... a5 {[%clk 0:02:02.2]} 23. Rhe1 {[%clk 0:00:45.7]} 23...
Kf7 {[%clk 0:01:45.9]} 24. Kb1 {[%clk 0:00:45]} 24... a4 {[%clk 0:01:45.3]} 25.
f4 {[%clk 0:00:42.3]} 25... e4 {[%clk 0:01:44.7]} 26. Nd4 {[%clk 0:00:40.7]}
26... d5 {[%clk 0:01:35.2]} 27. Nxc6 {[%clk 0:00:38]} 27... Rxc6 {[%clk
0:01:36.1]} 28. Bd4 {[%clk 0:00:38.4]} 28... Ke6 {[%clk 0:01:36.5]} 29. h3
{[%clk 0:00:36.5]} 29... h5 {[%clk 0:01:36.2]} 30. g3 {[%clk 0:00:28.3]} 30...
g6 {[%clk 0:01:32.6]} 31. Rg1 {[%clk 0:00:25.2]} 31... Ne8 {[%clk 0:01:23.3]}
32. g4 {[%clk 0:00:25]} 32... h4 {[%clk 0:01:23.4]} 33. f5+ {[%clk 0:00:23.6]}
33... gxf5 {[%clk 0:01:22.8]} 34. gxf5+ {[%clk 0:00:23.9]} 34... Kxf5 {[%clk
0:01:23.4]} 35. Rdf1+ {[%clk 0:00:23.8]} 35... Ke6 {[%clk 0:01:23.6]} 36. Rg6+
{[%clk 0:00:23.6]} 36... Kd7 {[%clk 0:01:24]} 37. Rxc6 {[%clk 0:00:22.9]} 37...
Kxc6 {[%clk 0:01:24.9]} 38. Rf7 {[%clk 0:00:20.7]} 38... Bd6 {[%clk 0:01:20.4]}
39. Rh7 {[%clk 0:00:18.5]} 39... Bg3 {[%clk 0:01:18.5]} 40. a3 {[%clk
0:00:17.8]} 40... bxa3 {[%clk 0:01:18.3]} 41. bxa3 {[%clk 0:00:18.2]} 41... Nd6
{[%clk 0:01:18.8]} 42. Bf6 {[%clk 0:00:15.3]} 42... Nf5 {[%clk 0:01:18.6]} 43.
Kc1 {[%clk 0:00:14.2]} 43... Kd6 {[%clk 0:01:17.1]} 44. Rh5 {[%clk 0:00:11.4]}
44... Ke6 {[%clk 0:01:17.3]} 45. Bd8 {[%clk 0:00:10.2]} 45... d4 {[%clk
0:01:17.4]} 46. Kd1 {[%clk 0:00:09.3]} 46... Ne3+ {[%clk 0:01:17.2]} 47. Kd2
{[%clk 0:00:08.8]} 47... Nc4+ {[%clk 0:01:17.1]} 48. Ke2 {[%clk 0:00:07.4]}
48... Nb2 {[%clk 0:01:14.4]} 49. Bxh4 {[%clk 0:00:06.6]} 49... d3+ {[%clk
0:01:14.7]} 50. cxd3 {[%clk 0:00:06]} 50... exd3+ {[%clk 0:01:15.1]} 0-1

[Event "*** Titled Tuesday Blitz"]
[Site "Chess.com"]
[Date "2020.05.12"]
[Round "3"]
[White "davidkalashian"]
[Black "TheoSlade"]
[Result "1-0"]
[WhiteElo "2513"]
[BlackElo "2278"]
[TimeControl "180+1"]
[EndTime "10:27:56 PDT"]
[Termination "davidkalashian won by resignation"]

1. e4 {[%clk 0:03:00.9]} 1... e5 {[%clk 0:03:00.5]} 2. Nf3 {[%clk 0:02:59.8]}
2... Nc6 {[%clk 0:03:01]} 3. Bb5 {[%clk 0:02:58.6]} 3... Nf6 {[%clk 0:03:01.1]}
4. O-O {[%clk 0:02:57.7]} 4... Nxe4 {[%clk 0:03:01.5]} 5. d4 {[%clk 0:02:56.6]}
5... Nd6 {[%clk 0:03:02]} 6. Bxc6 {[%clk 0:02:44.8]} 6... dxc6 {[%clk
0:03:02.9]} 7. dxe5 {[%clk 0:02:45]} 7... Nf5 {[%clk 0:03:03.3]} 8. Qxd8+ {[%clk
0:02:45.1]} 8... Kxd8 {[%clk 0:03:04.2]} 9. Rd1+ {[%clk 0:02:44.6]} 9... Ke8
{[%clk 0:03:03.5]} 10. Nc3 {[%clk 0:02:44.9]} 10... Be7 {[%clk 0:03:03.8]} 11.
Ne4 {[%clk 0:02:45.2]} 11... Nh4 {[%clk 0:02:51.2]} 12. Nd4 {[%clk 0:02:36.6]}
12... Nf5 {[%clk 0:02:51.4]} 13. Nf3 {[%clk 0:02:32.8]} 13... Nh4 {[%clk
0:02:51.2]} 14. Nd4 {[%clk 0:02:32.4]} 14... Nf5 {[%clk 0:02:51.3]} 15. Bf4
{[%clk 0:02:23.1]} 15... Nxd4 {[%clk 0:02:44.3]} 16. Rxd4 {[%clk 0:02:24]} 16...
Bf5 {[%clk 0:02:39.2]} 17. c3 {[%clk 0:02:16.3]} 17... c5 {[%clk 0:02:27.4]} 18.
Rc4 {[%clk 0:01:59.2]} 18... b5 {[%clk 0:02:24]} 19. Rxc5 {[%clk 0:01:58.7]}
19... Bxc5 {[%clk 0:02:07.3]} 20. Nxc5 {[%clk 0:01:57.5]} 20... Rd8 {[%clk
0:02:05.2]} 21. h3 {[%clk 0:01:46.9]} 21... Rd5 {[%clk 0:01:54.2]} 22. b4 {[%clk
0:01:45.5]} 22... Ke7 {[%clk 0:01:50.9]} 23. a4 {[%clk 0:01:44.9]} 23... a5
{[%clk 0:01:21.4]} 24. axb5 {[%clk 0:01:41.1]} 24... axb4 {[%clk 0:01:21.7]} 25.
cxb4 {[%clk 0:01:41.6]} 25... Rb8 {[%clk 0:01:17.8]} 26. Ra7 {[%clk 0:01:38.1]}
26... Kd8 {[%clk 0:01:02.8]} 27. e6 {[%clk 0:01:36]} 27... Bxe6 {[%clk
0:00:44.9]} 28. Bxc7+ {[%clk 0:01:34.3]} 28... Kc8 {[%clk 0:00:44.9]} 29. Bxb8
{[%clk 0:01:31.2]} 29... Kxb8 {[%clk 0:00:45.8]} 30. Re7 {[%clk 0:01:30]} 30...
Rd6 {[%clk 0:00:17.6]} 31. Nxe6 {[%clk 0:01:16.1]} 31... fxe6 {[%clk 0:00:16]}
32. Rxg7 {[%clk 0:01:15.9]} 32... Rb6 {[%clk 0:00:13.4]} 33. Rxh7 {[%clk
0:01:15.1]} 33... Rxb5 {[%clk 0:00:13.8]} 34. Re7 {[%clk 0:01:15.2]} 34... e5
{[%clk 0:00:11.8]} 35. h4 {[%clk 0:01:09.5]} 35... Kc8 {[%clk 0:00:12.1]} 36. h5
{[%clk 0:01:09.7]} 36... Kd8 {[%clk 0:00:12.6]} 37. Rg7 {[%clk 0:01:09.3]} 37...
Ke8 {[%clk 0:00:12.2]} 38. h6 {[%clk 0:01:09.2]} 38... Kf8 {[%clk 0:00:12.3]}
39. Rc7 {[%clk 0:01:09.1]} 39... Rxb4 {[%clk 0:00:07.7]} 40. Rc8+ {[%clk
0:01:08.2]} 40... Kf7 {[%clk 0:00:06.7]} 41. h7 {[%clk 0:01:09.1]} 41... Rh4
{[%clk 0:00:03.3]} 42. h8=Q {[%clk 0:01:08.2]} 42... Rxh8 {[%clk 0:00:03.7]} 43.
Rxh8 {[%clk 0:01:07.8]} 43... Kg7 {[%clk 0:00:03.3]} 44. Re8 {[%clk 0:01:07.5]}
44... Kf6 {[%clk 0:00:01.9]} 45. f3 {[%clk 0:01:07.6]} 1-0

[Event "*** Titled Tuesday Blitz"]
[Site "Chess.com"]
[Date "2020.05.12"]
[Round "3"]
[White "kai_nov"]
[Black "Mikhail_Golubev"]
[Result "0-1"]
[WhiteElo "2250"]
[BlackElo "2510"]
[TimeControl "180+1"]
[EndTime "10:27:56 PDT"]
[Termination "Mikhail_Golubev won by checkmate"]

1. d4 {[%clk 0:02:49.3]} 1... Nf6 {[%clk 0:02:59.3]} 2. c4 {[%clk 0:02:48.8]}
2... g6 {[%clk 0:02:59.6]} 3. f3 {[%clk 0:02:49.2]} 3... Bg7 {[%clk 0:02:59.7]}
4. e4 {[%clk 0:02:49.4]} 4... d6 {[%clk 0:03:00.2]} 5. Nc3 {[%clk 0:02:49.7]}
5... O-O {[%clk 0:02:59.6]} 6. Bg5 {[%clk 0:02:49.6]} 6... a6 {[%clk 0:02:58.4]}
7. Qd2 {[%clk 0:02:48.9]} 7... Nc6 {[%clk 0:02:58.5]} 8. Nge2 {[%clk 0:02:46.9]}
8... Rb8 {[%clk 0:02:58.4]} 9. Rc1 {[%clk 0:02:46.6]} 9... Bd7 {[%clk
0:02:56.7]} 10. Nd1 {[%clk 0:02:45.8]} 10... Re8 {[%clk 0:02:20.5]} 11. Nf2
{[%clk 0:02:44.8]} 11... e5 {[%clk 0:02:13.1]} 12. d5 {[%clk 0:02:42.5]} 12...
Nd4 {[%clk 0:02:13.3]} 13. Nxd4 {[%clk 0:02:33.4]} 13... exd4 {[%clk 0:02:13.1]}
14. Be2 {[%clk 0:02:23.1]} 14... c5 {[%clk 0:02:08.1]} 15. dxc6 {[%clk 0:02:13]}
15... bxc6 {[%clk 0:02:07.8]} 16. c5 {[%clk 0:02:02.9]} 16... d5 {[%clk
0:01:34.4]} 17. exd5 {[%clk 0:01:58]} 17... h6 {[%clk 0:01:34.4]} 18. Bf4 {[%clk
0:01:41.6]} 18... Nxd5 {[%clk 0:01:31.1]} 19. Bxb8 {[%clk 0:01:36.4]} 19... Qxb8
{[%clk 0:01:31.1]} 20. O-O {[%clk 0:01:35]} 20... Ne3 {[%clk 0:01:17.9]} 21.
Rfe1 {[%clk 0:01:32.7]} 21... Be5 {[%clk 0:01:17.9]} 22. f4 {[%clk 0:00:30.3]}
22... Bxf4 {[%clk 0:01:13.6]} 23. Qxd4 {[%clk 0:00:28.9]} 23... Bxh2+ {[%clk
0:00:51.7]} 24. Kh1 {[%clk 0:00:28.7]} 24... Qg3 {[%clk 0:00:40.8]} 25. Bf3
{[%clk 0:00:28.2]} 25... Qxf2 {[%clk 0:00:19.3]} 26. Qxd7 {[%clk 0:00:27.3]}
26... Bf4 {[%clk 0:00:13.6]} 27. Qxe8+ {[%clk 0:00:22.7]} 27... Kg7 {[%clk
0:00:13.6]} 28. Qd7 {[%clk 0:00:21.6]} 28... Nf5 {[%clk 0:00:11.4]} 29. Rc3
{[%clk 0:00:16.5]} 29... Qxe1# {[%clk 0:00:08.3]} 0-1

[Event "*** Titled Tuesday Blitz"]
[Site "Chess.com"]
[Date "2020.05.12"]
[Round "3"]
[White "Rumpel-VK"]
[Black "Batica1984"]
[Result "0-1"]
[WhiteElo "2598"]
[BlackElo "2803"]
[TimeControl "180+1"]
[EndTime "10:27:57 PDT"]
[Termination "Batica1984 won on time"]

1. e4 {[%clk 0:03:00.9]} 1... c5 {[%clk 0:02:56.4]} 2. g3 {[%clk 0:03:00.4]}
2... d5 {[%clk 0:02:48.3]} 3. exd5 {[%clk 0:03:00]} 3... Qxd5 {[%clk 0:02:48.1]}
4. Nf3 {[%clk 0:03:00]} 4... Bg4 {[%clk 0:02:39.3]} 5. Bg2 {[%clk 0:02:59.9]}
5... Qe6+ {[%clk 0:02:28.5]} 6. Kf1 {[%clk 0:02:57.7]} 6... Nc6 {[%clk
0:02:28.7]} 7. h3 {[%clk 0:02:56.7]} 7... Bh5 {[%clk 0:02:22.6]} 8. Kg1 {[%clk
0:02:52.9]} 8... Nf6 {[%clk 0:02:06.4]} 9. Kh2 {[%clk 0:02:38.9]} 9... Qd7
{[%clk 0:02:04.9]} 10. Re1 {[%clk 0:02:37.7]} 10... e6 {[%clk 0:02:04.7]} 11. d3
{[%clk 0:02:35.1]} 11... Bd6 {[%clk 0:01:56.9]} 12. Nbd2 {[%clk 0:02:30]} 12...
O-O {[%clk 0:01:49.8]} 13. Nc4 {[%clk 0:02:15.6]} 13... Bc7 {[%clk 0:01:49.1]}
14. Kg1 {[%clk 0:02:06]} 14... Bxf3 {[%clk 0:01:28.8]} 15. Bxf3 {[%clk
0:02:03.2]} 15... h6 {[%clk 0:01:27.2]} 16. Bg2 {[%clk 0:01:51.5]} 16... Rad8
{[%clk 0:01:27.2]} 17. Bd2 {[%clk 0:01:44.6]} 17... b6 {[%clk 0:01:26.6]} 18.
Bc3 {[%clk 0:01:24.2]} 18... Nd5 {[%clk 0:01:21.1]} 19. Be5 {[%clk 0:01:14]}
19... Nxe5 {[%clk 0:01:20.6]} 20. Nxe5 {[%clk 0:01:13.6]} 20... Bxe5 {[%clk
0:01:15.1]} 21. Rxe5 {[%clk 0:01:12.4]} 21... Nb4 {[%clk 0:01:15.4]} 22. a3
{[%clk 0:01:09.4]} 22... Nc6 {[%clk 0:01:14.9]} 23. Re1 {[%clk 0:01:06.3]} 23...
Nd4 {[%clk 0:01:15]} 24. Qd2 {[%clk 0:00:58.8]} 24... Qa4 {[%clk 0:01:12.9]} 25.
Rac1 {[%clk 0:00:54.6]} 25... Rd6 {[%clk 0:01:08.5]} 26. Re4 {[%clk 0:00:51.3]}
26... Qd7 {[%clk 0:01:07.9]} 27. Kh2 {[%clk 0:00:49.6]} 27... f5 {[%clk
0:01:03.7]} 28. Re5 {[%clk 0:00:41.4]} 28... f4 {[%clk 0:01:03.4]} 29. gxf4
{[%clk 0:00:35.7]} 29... Rf6 {[%clk 0:01:03.4]} 30. Rce1 {[%clk 0:00:34.2]}
30... Qf7 {[%clk 0:01:03.2]} 31. c3 {[%clk 0:00:32.3]} 31... Nf5 {[%clk
0:01:01.5]} 32. Qe2 {[%clk 0:00:30.4]} 32... Nh4 {[%clk 0:01:00.2]} 33. Be4
{[%clk 0:00:13.6]} 33... Rxf4 {[%clk 0:00:58]} 34. Rf1 {[%clk 0:00:13.7]} 34...
Qf6 {[%clk 0:00:53.6]} 35. Bh1 {[%clk 0:00:12.5]} 35... Rxd3 {[%clk 0:00:44.6]}
36. Qe4 {[%clk 0:00:03.8]} 36... Rxe4 {[%clk 0:00:42.9]} 0-1

[Event "*** Titled Tuesday Blitz"]
[Site "Chess.com"]
[Date "2020.05.12"]
[Round "3"]
[White "mirochka"]
[Black "ENEASZ"]
[Result "0-1"]
[WhiteElo "2149"]
[BlackElo "2474"]
[TimeControl "180+1"]
[EndTime "10:28:01 PDT"]
[Termination "ENEASZ won by resignation"]

1. e4 {[%clk 0:03:00.9]} 1... d6 {[%clk 0:02:54.3]} 2. d4 {[%clk 0:02:59.9]}
2... Nf6 {[%clk 0:02:52.7]} 3. Nc3 {[%clk 0:02:59.2]} 3... e5 {[%clk 0:02:51.2]}
4. Nf3 {[%clk 0:02:44.8]} 4... Nbd7 {[%clk 0:02:50.6]} 5. a4 {[%clk 0:02:33.4]}
5... Be7 {[%clk 0:02:48.4]} 6. Bc4 {[%clk 0:02:29.5]} 6... O-O {[%clk
0:02:44.5]} 7. O-O {[%clk 0:02:28.3]} 7... c6 {[%clk 0:02:41.4]} 8. h3 {[%clk
0:02:26.7]} 8... b6 {[%clk 0:02:36.8]} 9. Be3 {[%clk 0:02:23.7]} 9... a6 {[%clk
0:02:34.2]} 10. Re1 {[%clk 0:02:21.7]} 10... Rb8 {[%clk 0:02:28.5]} 11. Qd3
{[%clk 0:01:57.8]} 11... b5 {[%clk 0:02:27.1]} 12. axb5 {[%clk 0:01:56.9]} 12...
axb5 {[%clk 0:02:25.7]} 13. Ba2 {[%clk 0:01:48.5]} 13... b4 {[%clk 0:02:22.1]}
14. Ne2 {[%clk 0:01:45.2]} 14... exd4 {[%clk 0:01:17.2]} 15. Bxd4 {[%clk
0:01:44.5]} 15... c5 {[%clk 0:01:15.5]} 16. Be3 {[%clk 0:01:43.7]} 16... Ne5
{[%clk 0:01:10.5]} 17. Nxe5 {[%clk 0:01:40.1]} 17... dxe5 {[%clk 0:01:11.4]} 18.
Qxd8 {[%clk 0:00:51.4]} 18... Rxd8 {[%clk 0:01:12.3]} 19. Ng3 {[%clk 0:00:48.5]}
19... g6 {[%clk 0:01:01.9]} 20. f4 {[%clk 0:00:45.8]} 20... Nd7 {[%clk
0:00:56.8]} 21. f5 {[%clk 0:00:42.9]} 21... Bh4 {[%clk 0:00:55.9]} 22. Kh2
{[%clk 0:00:41.1]} 22... Bb7 {[%clk 0:00:53.4]} 23. fxg6 {[%clk 0:00:35.9]}
23... hxg6 {[%clk 0:00:54.3]} 24. Rf1 {[%clk 0:00:35.7]} 24... Rf8 {[%clk
0:00:53.4]} 25. Bh6 {[%clk 0:00:35]} 25... Bxg3+ {[%clk 0:00:45.2]} 26. Kxg3
{[%clk 0:00:34.4]} 26... Bxe4 {[%clk 0:00:46.1]} 27. Bxf8 {[%clk 0:00:34.3]}
27... Rxf8 {[%clk 0:00:47]} 28. Rad1 {[%clk 0:00:32.7]} 28... Nb8 {[%clk
0:00:33.7]} 29. Rde1 {[%clk 0:00:32.3]} 29... Bxc2 {[%clk 0:00:33.1]} 30. Rxe5
{[%clk 0:00:32]} 30... Nc6 {[%clk 0:00:31.7]} 31. Bd5 {[%clk 0:00:29.6]} 31...
Nxe5 {[%clk 0:00:31.1]} 32. Rc1 {[%clk 0:00:26]} 32... b3 {[%clk 0:00:26.4]} 33.
Re1 {[%clk 0:00:25.1]} 33... Nd3 {[%clk 0:00:24.7]} 34. Re7 {[%clk 0:00:24.1]}
34... Nxb2 {[%clk 0:00:23]} 35. Rc7 {[%clk 0:00:21.1]} 35... c4 {[%clk
0:00:22.5]} 36. Rc6 {[%clk 0:00:19.9]} 36... Kg7 {[%clk 0:00:22]} 37. Bxc4
{[%clk 0:00:19.3]} 37... Nxc4 {[%clk 0:00:21]} 38. Rxc4 {[%clk 0:00:19.8]} 38...
b2 {[%clk 0:00:21.3]} 0-1